fUSD/lending_fUSD_20250120
["ID","MTS","AMOUNT","RATE_DAILY","PERIOD"]
[349654544,1737358257715,-151.0,0.00021918,7]
[349654545,1737358257725,-151.0,0.00021918,7]
[349654546,1737358257737,-151.0,0.00021918,7]
[349654547,1737358257748,-151.0,0.00021918,7]
[349654548,1737358257757,-151.0,0.00021918,7]
[349654549,1737358257770,-151.0,0.00021918,7]
[349654550,1737358257780,-151.0,0.00021918,7]
[349654551,1737358257789,-151.0,0.00021918,7]
[349654552,1737358257799,-151.0,0.00021918,7]
[349654553,1737358257807,-151.0,0.00021918,7]
[349654554,1737358257816,-151.0,0.00021918,7]
[349654555,1737358257826,-151.0,0.00021918,7]
[349654556,1737358257836,-151.0,0.00021918,7]
[349654557,1737358257846,-151.0,0.00021918,7]
[349654558,1737358257856,-151.0,0.00021918,7]
[349654559,1737358257867,-151.0,0.00021918,7]
[349654560,1737358257876,-151.0,0.00021918,7]
[349654561,1737358257885,-151.0,0.00021918,7]
[349654562,1737358257894,-151.0,0.00021918,7]
[349654563,1737358257903,-151.0,0.00021918,7]
[349654564,1737358257913,-151.0,0.00021918,7]
[349654565,1737358257922,-151.0,0.00021918,7]
[349654566,1737358257931,-151.0,0.00021918,7]
[349654567,1737358257940,-151.0,0.00021918,7]
[349654568,1737358257950,-151.0,0.00021918,7]
[349654569,1737358257959,-151.0,0.00021918,7]
[349654570,1737358257969,-151.0,0.00021918,7]
[349654571,1737358257978,-151.0,0.00021918,7]
[349654572,1737358257987,-151.0,0.00021918,7]
[349654573,1737358257997,-151.0,0.00021918,7]
[349654574,1737358258007,-151.0,0.00021918,7]
[349654575,1737358258021,-151.0,0.00021918,7]
[349654576,1737358258031,-151.0,0.00021918,7]
[349654577,1737358258046,-151.0,0.00021918,7]
[349654578,1737358258055,-151.0,0.00021918,7]
[349654579,1737358258065,-151.0,0.00021918,7]
[349654580,1737358258075,-222.0,0.00021918,7]
[349654581,1737358258086,-214.41344537,0.00021931,2]
[349654582,1737358258096,-785.0,0.00021933,2]
[349654583,1737358258106,-150.0,0.00021948,2]
[349654584,1737358258115,-785.0,0.0002196,2]
[349654585,1737358258125,-1139.0,0.00021964,2]
[349654586,1737358258136,-997.21,0.00021964,2]
[349654587,1737358258145,-841.83,0.00021964,2]
[349654588,1737358258156,-1568.84,0.00021964,2]
[349654589,1737358258166,-686.33,0.00021964,2]
[349654590,1737358258175,-588.46,0.00021964,2]
[349654591,1737358258185,-1280.7,0.00021964,2]
[349654592,1737358258195,-2967.14,0.00021964,2]
[349654593,1737358258205,-1748.92,0.00021964,2]
[349654594,1737358258215,-742.97,0.00021964,2]
[349654595,1737358258225,-500.0,0.00021964,2]
[349654596,1737358258234,-647.97,0.00021964,2]
[349654597,1737358258244,-1188.05,0.00021964,2]
[349654598,1737358258254,-150.0,0.00021965,4]
[349654599,1737358258263,-842.54,0.00021965,2]
[349654600,1737358258275,-500.0,0.00021965,2]
[349654601,1737358258285,-577.26,0.00021965,2]
[349654602,1737358258295,-3973.63,0.00021965,2]
[349654603,1737358258305,-1011.74,0.00021965,2]
[349654604,1737358258314,-2791.81,0.00021965,2]
[349654605,1737358258324,-1475.060812,0.00021965,2]
[349654606,1737358258334,-585.35,0.00021965,2]
[349654607,1737358258344,-1408.83,0.00021965,2]
[349654608,1737358258353,-528.52997692,0.00021965,2]
[349654609,1737358258363,-1687.86,0.00021965,2]
[349654610,1737358258372,-1944.56,0.00021965,2]
[349654611,1737358258382,-500.0,0.00021965,2]
[349654612,1737358258391,-628.518133,0.00021965,2]
[349654613,1737358258401,-531.13,0.00021965,2]
[349654614,1737358258411,-1493.9,0.00021965,2]
[349654615,1737358258421,-1434.48,0.00021965,2]
[349654616,1737358258430,-540.03,0.00021965,2]
[349654617,1737358258440,-1599.15,0.00021965,2]
[349654618,1737358258449,-749.61,0.00021965,2]
[349654619,1737358258459,-1124.91,0.00021965,2]
[349654620,1737358258468,-500.0,0.00021965,2]
[349654621,1737358258478,-1653.98,0.00021965,2]
[349654622,1737358258488,-2188.93,0.00021965,2]
[349654623,1737358258498,-500.0,0.00021965,2]
[349654624,1737358258507,-666.16,0.00021965,2]
[349654625,1737358258520,-1655.06,0.00021965,2]
[349654626,1737358258530,-500.0,0.00021965,2]
[349654627,1737358258541,-3129.34,0.00021965,2]
[349654628,1737358258551,-1733.0,0.00021965,2]
[349654629,1737358258560,-1812.09,0.00021965,2]
[349654630,1737358258569,-3247.89,0.00021965,2]
[349654631,1737358258578,-3759.08,0.00021965,2]
[349654632,1737358258588,-978.53,0.00021965,2]
[349654633,1737358258597,-500.0,0.00021965,2]
[349654634,1737358258607,-2232.69,0.00021965,2]
[349654635,1737358258616,-4573.56,0.00021965,2]
[349654636,1737358258625,-1490.55,0.00021965,2]
[349654637,1737358258635,-1877.94,0.00021965,2]
[349654638,1737358258644,-747.39,0.00021965,2]
[349654639,1737358258654,-2267.92,0.00021965,2]
[349654640,1737358258663,-500.0,0.00021967,2]
[349654641,1737358258672,-500.0,0.00021967,2]
[349654642,1737358258682,-598.74,0.00021967,2]
[349654643,1737358258691,-539.08,0.00021967,2]
[349654644,1737358258700,-530.9,0.00021967,2]
[349654645,1737358258710,-500.0,0.00021967,2]
[349654646,1737358258719,-500.0,0.00021967,2]
[349654647,1737358258728,-810.25,0.00021967,2]
[349654648,1737358258738,-778.8,0.00021967,2]
[349654649,1737358258749,-500.0,0.00021967,2]
[349654650,1737358258759,-500.0,0.00021967,2]
[349654651,1737358258772,-701.47,0.00021967,2]
[349654652,1737358258781,-500.0,0.00021967,2]
[349654653,1737358258790,-500.0,0.00021967,2]
[349654654,1737358258799,-500.0,0.00021967,2]
[349654655,1737358258809,-500.0,0.00021967,2]
[349654656,1737358258818,-500.0,0.00021967,2]
[349654657,1737358258829,-531.31,0.00021967,2]
[349654658,1737358258840,-1049.78,0.00021967,2]
[349654659,1737358258851,-754.86,0.00021967,2]
[349654660,1737358258861,-624.39920488,0.00021967,2]
[349654661,1737358258875,-939.56,0.00021967,2]
[349654662,1737358258885,-524.49,0.00021967,2]
[349654663,1737358258894,-817.68,0.00021967,2]
[349654664,1737358258904,-500.0,0.00021967,2]
[349654665,1737358258914,-514.1,0.00021967,2]
[349654666,1737358259059,-1014.13,0.00021967,2]
[349654667,1737358259076,-500.0,0.00021967,2]
[349654668,1737358259088,-692.25,0.00021967,2]
[349654669,1737358259097,-500.0,0.00021967,2]
[349654670,1737358259108,-500.0,0.00021967,2]
[349654671,1737358259118,-428.70383217,0.00021967,2]
[349654672,1737358259128,-1392.63,0.00021967,2]
[349654673,1737358259138,-1028.77,0.00021967,2]
[349654674,1737358259148,-715.02,0.00021967,2]
[349654675,1737358259158,-812.65,0.00021967,2]
[349654676,1737358259167,-1251.3,0.00021967,2]
[349654677,1737358259176,-835.78,0.00021967,2]
[349654678,1737358259186,-923.81,0.00021967,2]
[349654679,1737358259195,-883.84,0.00021967,2]
[349654680,1737358259204,-545.11,0.00021967,2]
[349654681,1737358259214,-578.86,0.00021967,2]
[349654682,1737358259223,-1891.85,0.00021967,2]
[349654683,1737358259234,-1492.9,0.00021967,2]
[349654684,1737358259245,-500.0,0.00021967,2]
[349654685,1737358259254,-693.51,0.00021967,2]
[349654686,1737358259266,-687.38,0.00021967,2]
[349654687,1737358259277,-1018.55,0.00021967,2]
[349654688,1737358259287,-2188.22,0.00021967,2]
[349654689,1737358259296,-1012.28,0.00021967,2]
[349654690,1737358259306,-671.9,0.00021967,2]
[349654691,1737358259315,-3198.95,0.00021967,2]
[349654692,1737358259325,-1807.29,0.00021967,2]
[349654693,1737358259335,-2284.05,0.00021967,2]
[349654694,1737358259344,-1588.75,0.00021967,2]
[349654695,1737358259353,-4505.9,0.00021967,2]
[349654696,1737358259363,-3227.61,0.00021967,2]
[349654697,1737358259373,-660.17,0.00021967,2]
[349654698,1737358259383,-5765.91,0.00021967,2]
[349654699,1737358259393,-591.12,0.00021967,2]
[349654700,1737358259402,-500.0,0.00021967,2]
[349654701,1737358259412,-931.82,0.00021967,2]
[349654702,1737358259421,-500.0,0.00021967,2]
[349654703,1737358259431,-2.62438372,0.00021967,2]
[349654704,1737358259681,-425.51057582,0.00021967,2]
[349654705,1737358259698,-249.34504046,0.00021967,2]
[349654706,1737358259707,-327.28936811,0.00021967,2]
[349654707,1737358259719,-1622.85,0.00021967,2]
[349654708,1737358259733,-3890.14063189,0.00021967,2]
[349654709,1737358259743,-500.0,0.00021967,2]
[349654710,1737358259752,-1225.23,0.00021967,2]
[349654711,1737358259761,-2060.03,0.00021967,2]
[349654712,1737358259774,-3610.55,0.00021967,2]
[349654713,1737358259784,-2580.22,0.00021967,2]
[349654714,1737358259793,-5754.21,0.00021967,2]
[349654715,1737358259803,-591.44,0.00021967,2]
[349654716,1737358259813,-864.06,0.00021967,2]
[349654717,1737358259823,-889.56,0.00021967,2]
[349654718,1737358259833,-1342.14,0.00021967,2]
[349654719,1737358259843,-500.0,0.00021967,2]
[349654720,1737358259854,-1727.15,0.00021967,2]
[349654721,1737358259864,-1114.35,0.00021967,2]
[349654722,1737358259873,-1736.59,0.00021967,2]
[349654723,1737358259883,-2365.3,0.00021967,2]
[349654724,1737358259893,-500.0,0.00021967,2]
[349654725,1737358259903,-503.38,0.00021967,2]
[349654726,1737358259912,-885.25,0.00021967,2]
[349654727,1737358259921,-57.64678811,0.00021967,2]
[349654728,1737358259933,-353.14918193,0.00021967,2]
[349654729,1737358260048,-500.0,0.00019499,2]
[349654730,1737358260058,-500.0,0.00019772,2]
[349654731,1737358260067,-15.66538094,0.00020594,2]
[349654732,1737358260083,-508.36461906,0.00020594,2]
[349654733,1737358260093,-524.03,0.00020868,2]
[349654734,1737358260102,-56.80538094,0.00020871,2]
[349654735,1737358260122,-443.19461906,0.00020871,2]
[349654736,1737358260132,-524.03,0.00021142,2]
[349654737,1737358260141,-500.0,0.00021145,2]
[349654738,1737358260150,-500.0,0.00021419,2]
[349654739,1737358260160,-150.0,0.00021796,2]
[349654740,1737358260169,-260.22774594,0.00021878,2]
[349654741,1737358260179,-702.95402996,0.00021967,2]
[349654742,1737358260188,-500.0,0.00021967,2]
[349654743,1737358260198,-1687.03,0.00021967,2]
[349654744,1737358260207,-661.41,0.00021967,2]
[349654745,1737358260217,-1230.27,0.00021967,2]
[349654746,1737358260226,-623.34,0.00021967,2]
[349654747,1737358260234,-500.0,0.00021967,2]
[349654748,1737358260244,-777.15,0.00021967,2]
[349654749,1737358260254,-648.2,0.00021967,2]
[349654750,1737358260264,-500.0,0.00021967,2]
[349654751,1737358260276,-500.0,0.00021967,2]
[349654752,1737358260286,-644.5,0.00021967,2]
[349654753,1737358260298,-3562.99,0.00021967,2]
[349654754,1737358260309,-403.02579283,0.0002197,2]
[349654755,1737358260319,-7656.96,0.0002198,2]
[349654756,1737358260329,-14430.0297826,0.0002198,2]
[349654757,1737358260341,-1239.50863962,0.0002198,2]
[349654758,1737358260516,-500.0,0.00019773,2]
[349654759,1737358260529,-500.0,0.00020046,2]
[349654760,1737358260539,-500.0,0.0002032,2]
[349654761,1737358260550,-1327.8094939,0.00020531,2]
[349654762,1737358260560,-500.0,0.00020594,2]
[349654763,1737358260570,-375.67364765,0.00020868,2]
[349654764,1737358260580,-500.0,0.00020871,2]
[349654765,1737358260590,-500.0,0.00020871,2]
[349654766,1737358260600,-520.53785434,0.00021145,2]
[349654767,1737358260610,-524.03,0.00021416,2]
[349654768,1737358260619,-524.03,0.0002169,2]
[349654769,1737358260629,-524.03,0.00021964,2]
[349654770,1737358260639,-983.80180161,0.0002198,2]
[349654771,1737358260674,-500.0,0.00019498,2]
[349654772,1737358260683,-246.735203,0.00019499,2]
[349654773,1737358260853,-500.0,0.00021145,2]
[349654774,1737358260865,-16351.9305357,0.0002198,2]
[349654775,1737358260885,-15704.48439668,0.0002198,2]
[349654776,1737358260897,-294822.81694055,0.0002198,2]
[349654777,1737358260907,-151.0,0.0002198,7]
[349654778,1737358260917,-151.0,0.0002198,7]
[349654779,1737358260927,-170.947241,0.0002198,7]
[349654780,1737358260937,-198.6790372,0.00021985,2]
[349654781,1737358260947,-207.8203459,0.00021985,2]
[349654782,1737358260957,-216.9616545,0.00021985,2]
[349654783,1737358260966,-226.1029632,0.00021985,2]
[349654784,1737358260976,-235.2442718,0.00021985,2]
[349654785,1737358260986,-395.3904659,0.00021985,2]
[349654786,1737358260995,-413.5825527,0.00021985,2]
[349654787,1737358261005,-431.7746395,0.00021985,2]
[349654788,1737358261015,-449.9667262,0.00021985,2]
[349654789,1737358261028,-468.158813,0.00021985,2]
[349654790,1737358261040,-233.0248249,0.00021985,2]
[349654791,1737358261051,-234.4736449,0.00021985,2]
[349654792,1737358261061,-235.9224649,0.00021985,2]
[349654793,1737358261072,-237.3712849,0.00021985,2]
[349654794,1737358261083,-238.8201049,0.00021985,2]
[349654795,1737358261095,-785.0,0.00021988,2]
[349654796,1737358261105,-1378.35750991,0.00021996,10]
[349654797,1737358261115,-10136.95108636,0.00021996,2]
[349654798,1737358261125,-3696.31572406,0.00021996,2]
[349654799,1737358261135,-2000.0,0.00021999,2]
[349654800,1737358261144,-1650.1707,0.00021999,2]
[349654801,1737358261154,-500.0,0.00021999,2]
[349654802,1737358261164,-113613.21264964,0.00022,2]
[349654803,1737358261340,-246.735203,0.00019773,2]
[349654804,1737358261350,-246.735203,0.00020047,2]
[349654805,1737358261359,-246.735203,0.00020321,2]
[349654806,1737358261370,-500.0,0.00021419,2]
[349654807,1737358261380,-150.0,0.00021796,2]
[349654808,1737358261390,-150.0,0.00021823,2]
[349654809,1737358261399,-363.73539132,0.00022,2]
[349654810,1737358261415,-108574.8773976,0.00022,2]
[349654811,1737358261558,-246.735203,0.00020595,2]
[349654812,1737358261568,-246.735203,0.00020869,2]
[349654813,1737358261577,-500.0,0.00020871,2]
[349654814,1737358261588,-246.735203,0.00021143,2]
[349654815,1737358261597,-500.0,0.00021145,2]
[349654816,1737358261607,-246.735203,0.00021417,2]
[349654817,1737358261616,-500.0,0.00021419,2]
[349654818,1737358261626,-246.735203,0.00021691,2]
[349654819,1737358261635,-500.0,0.00021693,2]
[349654820,1737358261645,-150.0,0.00021851,2]
[349654821,1737358261654,-290.56472172,0.00021878,2]
[349654822,1737358261664,-199.00926306,0.00021967,2]
[349654823,1737358261713,-300.99073694,0.00021967,2]
[349654824,1737358261723,-937.36335454,0.00022,2]
[349654825,1737358261735,-2167.8,0.00022,2]
[349654826,1737358261752,-503.6085769,0.00019498,2]
[349654827,1737358261764,-1427.0814243,0.00022,2]
[349654828,1737358261779,-2614.6999999,0.00022,2]
[349654829,1737358261832,-882.48006618,0.00022,2]
[349654830,1737358261843,-108856.08130999,0.00022,2]
[349654831,1737358261854,-562.88681001,0.00022,2]
[349654832,1737358261865,-544.75,0.00022,2]
[349654833,1737358261884,-246.735203,0.00021965,2]
[349654834,1737358261894,-464945.74777219,0.00022,2]
[349654835,1737358261905,-639.72422505,0.00022,2]
[349654836,1737358261925,-1084.4,0.00022,2]
[349654837,1737358263192,5559.0,0.000186,5]
[349654838,1737358263223,537.0,0.000183,3]
[349654839,1737358282307,500.0,0.00018164,2]
[349654840,1737358308819,689.67,0.00018508,2]
[349654842,1737358337437,204.25,0.00010137,2]
[349654843,1737358337668,204.25,0.00016813,2]
[349654844,1737358392179,503.459156,0.00022667,120]
[349654845,1737358403580,200.0,0.00022667,120]
[349654847,1737358603885,210.0,0.000224,120]
[349654848,1737359002517,204.715096,0.00022778,120]
[349654853,1737359254265,-500.0,0.00018164,2]
[349654854,1737359254293,-1022.54036712,0.00018897,2]
[349654855,1737359276690,300.0,0.000227,120]
[349654856,1737359297454,375.0,0.00023,120]
[349654857,1737359307755,500.0,0.00023,120]
[349654858,1737359313366,153.85,0.00010137,2]
[349654860,1737359343754,500.0,0.00023,120]
[349654861,1737359345087,-500.0,0.00018164,2]
[349654862,1737359345108,-500.0,0.00018164,2]
[349654863,1737359345129,-23900.0,0.00018792,2]
[349654864,1737359345150,-1895.94089083,0.00018795,2]
[349654865,1737359345170,-519.84757797,0.00018873,2]
[349654866,1737359345190,-14594.7200312,0.00018896,2]
[349654867,1737359346086,-1069.4348,0.00018896,2]
[349654868,1737359353089,-1789.916688,0.00018896,2]
[349654869,1737359365086,-1179.24,0.00018903,2]
[349654870,1737359365106,-173.40652133,0.00018973,2]
[349654871,1737359365133,-80.68347867,0.00018973,2]
[349654872,1737359365152,-723.26,0.00019029,2]
[349654873,1737359365173,-563.66658591,0.00019398,2]
[349654874,1737359365194,-440.1613,0.00019479,2]
[349654875,1737359365214,-150.0,0.00019479,2]
[349654876,1737359365234,-178.7,0.00019489,2]
[349654877,1737359365255,-212.0,0.00019496,2]
[349654878,1737359365275,-843.397,0.00019497,2]
[349654879,1737359365296,-202.00102038,0.00019497,2]
[349654880,1737359365317,-329.10392842,0.00019497,2]
[349654882,1737359418089,1000.0,0.00019239,2]
[349654902,1737359432410,-300.0,0.00019396,2]
[349654903,1737359432420,-32037.23483978,0.00019397,2]
[349654904,1737359432431,-178.7,0.00019488,2]
[349654905,1737359432442,-170.89607158,0.00019497,2]
[349654906,1737359432452,-2166.66,0.00019497,2]
[349654907,1737359432462,-1445.58,0.00019497,2]
[349654908,1737359432472,-1936.82,0.00019497,2]
[349654909,1737359432482,-1198.54,0.00019497,2]
[349654910,1737359432492,-1011.45,0.00019497,2]
[349654911,1737359432501,-2588.21,0.00019497,2]
[349654912,1737359432511,-500.0,0.00019497,2]
[349654913,1737359432520,-1258.39,0.00019497,2]
[349654914,1737359432530,-1982.52,0.00019497,2]
[349654915,1737359432540,-817.79,0.00019497,2]
[349654916,1737359432550,-4398.49,0.00019497,2]
[349654917,1737359432560,-710.98,0.00019497,2]
[349654918,1737359432569,-1482.39,0.00019497,2]
[349654919,1737359432582,-548.96,0.00019497,2]
[349654920,1737359432592,-3448.0,0.00019497,2]
[349654921,1737359432601,-2000.07,0.00019497,2]
[349654922,1737359432611,-500.0,0.00019497,2]
[349654924,1737359432620,-951.51,0.00019497,2]
[349654925,1737359432629,-1668.68,0.00019497,2]
[349654926,1737359432639,-500.0,0.00019497,2]
[349654927,1737359432648,-907.24,0.00019497,2]
[349654928,1737359432659,-2517.18,0.00019497,2]
[349654929,1737359432668,-500.0,0.00019497,2]
[349654930,1737359432677,-2474.52,0.00019497,2]
[349654931,1737359432687,-183.72568592,0.00019497,2]
[349654933,1737359432699,-871.10431408,0.00019497,2]
[349654935,1737359432707,-1387.21,0.00019497,2]
[349654937,1737359432716,-620.97,0.00019497,2]
[349654938,1737359432726,-500.0,0.00019497,2]
[349654940,1737359432735,-500.0,0.00019497,2]
[349654942,1737359432744,-500.0,0.00019497,2]
[349654944,1737359432753,-500.0,0.00019497,2]
[349654946,1737359432763,-681.24,0.00019497,2]
[349654948,1737359432773,-1169.54,0.00019497,2]
[349654950,1737359432782,-500.0,0.00019497,2]
[349654952,1737359432791,-500.0,0.00019498,2]
[349654954,1737359432800,-500.0,0.00019498,2]
[349654956,1737359432810,-594.3,0.00019498,2]
[349654958,1737359432819,-527.72010421,0.00019498,2]
[349654960,1737359432833,-500.0,0.00019498,2]
[349654962,1737359432843,-500.0,0.00019498,2]
[349654964,1737359432852,-500.0,0.00019498,2]
[349654967,1737359432861,-500.0,0.00019498,2]
[349654969,1737359432871,-500.0,0.00019498,2]
[349654971,1737359432881,-500.0,0.00019498,2]
[349654973,1737359432890,-514.73402483,0.00019498,2]
[349654975,1737359432899,-500.0,0.00019498,2]
[349654977,1737359432909,-500.0,0.00019498,2]
[349654979,1737359432918,-621.598423,0.00019498,2]
[349654981,1737359432928,-500.0,0.00019498,2]
[349654983,1737359432938,-500.0,0.00019498,2]
[349654985,1737359432946,-500.0,0.00019498,2]
[349654987,1737359432955,-500.0,0.00019498,2]
[349654989,1737359432965,-500.0,0.00019498,2]
[349654991,1737359432974,-480.16,0.00019498,2]
[349654993,1737359432984,-500.0,0.00019498,2]
[349654995,1737359432993,-54.60253388,0.00019498,2]
[349655000,1737359433035,-691.74746612,0.00019498,2]
[349655002,1737359433045,-500.0,0.00019498,2]
[349655004,1737359433056,-500.0,0.00019498,2]
[349655006,1737359433066,-500.0,0.00019498,2]
[349655008,1737359433080,-500.0,0.00019498,2]
[349655010,1737359433090,-500.0,0.00019498,2]
[349655012,1737359433101,-500.0,0.00019498,2]
[349655014,1737359433111,-500.0,0.00019498,2]
[349655016,1737359433122,-500.0,0.00019498,2]
[349655018,1737359433132,-583.41195387,0.00019498,2]
[349655020,1737359433142,-509.52724837,0.00019498,2]
[349655022,1737359433151,-500.0,0.00019498,2]
[349655024,1737359433162,-610.39030446,0.00019498,2]
[349655026,1737359433173,-500.0,0.00019498,2]
[349655028,1737359433183,-500.0,0.00019498,2]
[349655030,1737359433194,-500.0,0.00019498,2]
[349655032,1737359433204,-500.0,0.00019498,2]
[349655034,1737359433214,-500.0,0.00019498,2]
[349655036,1737359433222,-500.0,0.00019498,2]
[349655038,1737359433233,-163.72946289,0.00019498,2]
[349655040,1737359433243,-695.05,0.00019498,2]
[349655042,1737359433253,-500.0,0.00019498,2]
[349655044,1737359433262,-500.0,0.00019498,2]
[349655046,1737359433272,-500.0,0.00019498,2]
[349655048,1737359433281,-500.0,0.00019498,2]
[349655050,1737359433292,-500.0,0.00019498,2]
[349655052,1737359433303,-500.0,0.00019498,2]
[349655054,1737359433312,-500.0,0.00019498,2]
[349655056,1737359433322,-681.98,0.00019498,2]
[349655058,1737359433337,-956.85,0.00019498,2]
[349655061,1737359433349,-264.2417635,0.00019498,2]
[349655063,1737359433359,-500.0,0.00019498,2]
[349655065,1737359433369,-500.0,0.00019498,2]
[349655066,1737359433379,-679.77,0.00019498,2]
[349655068,1737359433388,-1162.51,0.00019498,2]
[349655070,1737359433400,-500.0,0.00019498,2]
[349655072,1737359433411,-500.0,0.00019498,2]
[349655074,1737359433422,-295.46776251,0.00019498,2]
[349655076,1737359433433,-500.0,0.00019498,2]
[349655078,1737359433444,-613.78,0.00019498,2]
[349655080,1737359433455,-500.0,0.00019498,2]
[349655082,1737359433465,-500.0,0.00019498,2]
[349655084,1737359433475,-503.14275106,0.00019498,2]
[349655086,1737359433486,-500.0,0.00019498,2]
[349655087,1737359433496,-998.73,0.00019498,2]
[349655088,1737359433506,-500.0,0.00019498,2]
[349655089,1737359433517,-500.0,0.00019498,2]
[349655090,1737359433526,-721.37,0.00019498,2]
[349655091,1737359433537,-500.0,0.00019498,2]
[349655092,1737359433547,-500.0,0.00019498,2]
[349655093,1737359433556,-203.36449975,0.00019498,2]
[349655094,1737359433566,-501.92892933,0.00019498,2]
[349655095,1737359433580,-803.78,0.00019498,2]
[349655096,1737359433590,-500.0,0.00019498,2]
[349655097,1737359433600,-500.0,0.00019498,2]
[349655098,1737359433610,-500.0,0.00019498,2]
[349655099,1737359433620,-500.0,0.00019498,2]
[349655100,1737359433629,-564.33,0.00019498,2]
[349655101,1737359433639,-500.0,0.00019498,2]
[349655102,1737359433649,-500.0,0.00019498,2]
[349655103,1737359433659,-500.0,0.00019498,2]
[349655104,1737359433669,-500.0,0.00019498,2]
[349655105,1737359433679,-500.0,0.00019498,2]
[349655106,1737359433689,-503.83,0.00019498,2]
[349655107,1737359433699,-500.0,0.00019498,2]
[349655108,1737359433710,-500.0,0.00019498,2]
[349655109,1737359433720,-506.74599179,0.00019498,2]
[349655110,1737359433729,-500.0,0.00019498,2]
[349655111,1737359433739,-500.0,0.00019498,2]
[349655112,1737359433749,-590.26076034,0.00019498,2]
[349655113,1737359433759,-500.0,0.00019498,2]
[349655114,1737359433768,-876.13,0.00019498,2]
[349655115,1737359433778,-500.0,0.00019498,2]
[349655116,1737359433788,-500.0,0.00019498,2]
[349655117,1737359433798,-500.0,0.00019498,2]
[349655118,1737359433808,-502.69406319,0.00019498,2]
[349655119,1737359433817,-500.0,0.00019498,2]
[349655120,1737359433832,-500.0,0.00019498,2]
[349655121,1737359433842,-500.0,0.00019498,2]
[349655122,1737359433851,-500.0,0.00019498,2]
[349655123,1737359433861,-500.0,0.00019498,2]
[349655124,1737359433870,-269.0025419,0.00019498,2]
[349655125,1737359433879,-514.73330224,0.00019498,2]
[349655126,1737359433889,-591.89,0.00019498,2]
[349655127,1737359433899,-500.0,0.00019498,2]
[349655128,1737359433908,-500.0,0.00019498,2]
[349655129,1737359433918,-1170.98,0.00019498,2]
[349655130,1737359433928,-500.0,0.00019498,2]
[349655131,1737359433939,-500.0,0.00019498,2]
[349655132,1737359433949,-500.0,0.00019498,2]
[349655133,1737359433959,-500.0,0.00019498,2]
[349655134,1737359433970,-500.0,0.00019498,2]
[349655135,1737359433980,-500.0,0.00019498,2]
[349655136,1737359433990,-500.0,0.00019498,2]
[349655137,1737359434000,-500.0,0.00019498,2]
[349655138,1737359434010,-1457.34,0.00019498,2]
[349655139,1737359434020,-1192.12,0.00019498,2]
[349655140,1737359434030,-1630.39,0.00019498,2]
[349655141,1737359434040,-500.0,0.00019498,2]
[349655142,1737359434050,-500.0,0.00019498,2]
[349655143,1737359434060,-500.0,0.00019498,2]
[349655144,1737359434070,-500.0,0.00019498,2]
[349655145,1737359434083,-1752.84,0.00019498,2]
[349655146,1737359434094,-500.0,0.00019498,2]
[349655147,1737359434103,-500.0,0.00019498,2]
[349655148,1737359434113,-500.0,0.00019498,2]
[349655149,1737359434122,-167.56537546,0.00019498,2]
[349655150,1737359434132,-226.24377736,0.00019498,2]